[Event "Winter Malopolska Cup Master 2022"]
[Site "Krakow"]
[Date "2022.01.17"]
[Round "5.4"]
[White "Szopa, Emilia"]
[Black "Saraev, Yaroslav"]
[Result "1/2-1/2"]
[ECO "B93"]
[WhiteElo "1588"]
[BlackElo "1922"]
[Annotator "ChessBase"]
[PlyCount "117"]
[EventDate "2022.01.15"]
[EventType "swiss"]
[EventCountry "POL"]
[TimeControl "5400+30"]

1. e4 {[%emt 0:00:10]} c5 {[%emt 0:01:55]} 2. Nf3 {[%emt 0:00:23]} d6 {[%emt 0:00:05]} 3. d4 {[%emt 0:00:20]} cxd4 {[%emt 0:00:04]} 4. Nxd4 {[%emt 0:00:10]} Nf6 {[%emt 0:00:04]} 5. Nc3 {[%emt 0:00:12]} a6 {[%emt 0:00:04]} 6. f4 {[%emt 0:01:07]} Qc7 {[%emt 0:01:26]} 7. Be2 {[%emt 0:06:54]} e6 {[%emt 0:01:16]} 8. O-O {[%emt 0:00:53]} Be7 {[%emt 0:04:37]} 9. Kh1 {[%emt 0:02:00]} O-O {[%emt 0:00:42]} 10. Qe1 {[%emt 0:04:59]} Nc6 {[%emt 0:03:49]} 11. Nxc6 {[%emt 0:03:31]} bxc6 {[%emt 0:04:36]} 12. Qg3 {[%emt 0:07:37]} d5 {[%emt 0:20:17]} 13. e5 {[%emt 0:09:13]} Nd7 {[%emt 0:00:07]} 14. Bd3 {[%emt 0:03:43]} Nc5 {[%emt 0:10:50]} 15. f5 {[%emt 0:23:51]} Nxd3 {[%emt 0:00:57]} 16. cxd3 {[%emt 0:00:11]} exf5 {[%emt 0:05:06]} 17. Bh6 {[%emt 0:04:11]} Bf6 {[%emt 0:19:56]} 18. exf6 {[%emt 0:16:46]} Qxg3 {[%emt 0:00:07]} 19. hxg3 {[%emt 0:01:41]} gxh6 {[%emt 0:00:06]} 20. Rae1 {[%emt 0:00:08]} Rb8 {[%emt 0:05:50]} 21. b3 {[%emt 0:01:30]} d4 {[%emt 0:08:22]} 22. Na4 {[%emt 0:02:13]} Be6 {[%emt 0:07:16]} 23. Rf4 {[%emt 0:01:10]} Rfd8 {[%emt 0:00:54]} 24. Rh4 {[%emt 0:02:26]} Bd5 {[%emt 0:02:37]} 25. Re5 {[%emt 0:02:12]} Rb5 {[%emt 0:01:14]} 26. Kh2 {[%emt 0:01:54]} Be4 {[%emt 0:00:30]} 27. Re7 {[%emt 0:02:41]} Bxd3 {[%emt 0:00:16]} 28. Rxd4 {[%emt 0:00:14]} Rbd5 {[%emt 0:00:05]} 29. Rb4 {[%emt 0:00:57]} Bb5 {[%emt 0:00:19]} 30. Nc3 {[%emt 0:00:15]} R5d6 {[%emt 0:00:13]} 31. Nxb5 {[%emt 0:00:56]} cxb5 {[%emt 0:00:17]} 32. Rf4 {[%emt 0:00:13]} Rxf6 {[%emt 0:00:08]} 33. Re5 {[%emt 0:00:10]} Rd2 {[%emt 0:01:16]} 34. a4 {[%emt 0:00:23]} bxa4 {[%emt 0:00:26]} 35. bxa4 {[%emt 0:00:07]} Rdd6 {[%emt 0:01:20]} 36. Rexf5 {[%emt 0:00:55]} Rxf5 {[%emt 0:00:46]} 37. Rxf5 {[%emt 0:00:06]} Kg7 38. Kh3 Kg6 {[%emt 0:00:45]} 39. Re5 {[%emt 0:01:50]} Kf6 {[%emt 0:00:31]} 40. Rh5 {[%emt 0:00:17]} Ke7 {[%emt 0:00:30]} 41. Re5+ {[%emt 0:00:51]} Re6 {[%emt 0:00:09]} 42. Rf5 {[%emt 0:00:47]} Rf6 {[%emt 0:00:13]} 43. Rd5 {[%emt 0:00:48]} Ke6 {[%emt 0:00:16]} 44. Ra5 {[%emt 0:00:17]} Kd7 {[%emt 0:00:12]} 45. Re5 {[%emt 0:00:15]} Kd6 {[%emt 0:00:16]} 46. Ra5 {[%emt 0:00:21]} Kc7 {[%emt 0:00:11]} 47. Re5 {[%emt 0:00:29]} Kb6 {[%emt 0:01:48]} 48. Rd5 {[%emt 0:00:57]} Rc6 {[%emt 0:00:58]} 49. Rf5 {[%emt 0:00:55]} a5 {[%emt 0:00:45]} 50. Rb5+ {[%emt 0:00:35]} Ka6 {[%emt 0:00:04]} 51. Rf5 {[%emt 0:00:06]} f6 {[%emt 0:00:52]} 52. Rf4 {[%emt 0:00:38]} Kb6 {[%emt 0:00:20]} 53. Rf5 {[%emt 0:00:09]} Rd6 {[%emt 0:00:43]} 54. Rb5+ {[%emt 0:00:10]} Ka6 {[%emt 0:00:05]} 55. Rf5 {[%emt 0:00:09]} Rb6 {[%emt 0:00:18]} 56. Rf4 {[%emt 0:00:21]} Kb7 {[%emt 0:00:37]} 57. Rf5 {[%emt 0:00:08]} Ka6 {[%emt 0:00:37]} 58. Rf4 {[%emt 0:00:10]} Kb7 {[%emt 0:00:41]} 59. Rf5 {[%emt 0:00:04]} 1/2-1/2

[Event "Winter Malopolska Cup Master 2022"]
[Site "Krakow"]
[Date "2022.01.17"]
[Round "5.5"]
[White "Tokarz, Izabela"]
[Black "Czaplak, Lukasz"]
[Result "0-1"]
[ECO "D35"]
[WhiteElo "1728"]
[BlackElo "1877"]
[Annotator "NA"]
[PlyCount "114"]
[EventDate "2022.01.15"]
[EventType "swiss"]
[EventCountry "POL"]
[TimeControl "5400+30"]

1. d4 {[%emt 0:03:48]} d5 {[%emt 0:00:04]} 2. c4 {[%emt 0:00:13]} e6 {[%emt 0:00:03]} 3. Nc3 {[%emt 0:00:04]} Nf6 {[%emt 0:00:03]} 4. cxd5 {[%emt 0:00:07]} exd5 {[%emt 0:00:02]} 5. Bg5 {[%emt 0:00:06]} Nbd7 {[%emt 0:00:14]} 6. Qc2 {[%emt 0:00:09]} c6 {[%emt 0:00:52]} 7. e3 {[%emt 0:00:04]} Be7 {[%emt 0:00:04]} 8. Bd3 {[%emt 0:00:05]} O-O {[%emt 0:00:36]} 9. Nge2 {[%emt 0:03:13]} Re8 {[%emt 0:00:21]} 10. O-O {[%emt 0:00:07]} Nf8 {[%emt 0:00:33]} 11. Rae1 {[%emt 0:10:54]} Nh5 {[%emt 0:14:32]} 12. Bxe7 {[%emt 0:03:38]} Qxe7 {[%emt 0:00:10]} 13. e4 {[%emt 0:30:42]} dxe4 {[%emt 0:00:11]} 14. Bxe4 {[%emt 0:01:55]} Nf6 {[%emt 0:14:32]} 15. Bd3 {[%emt 0:05:44]} Be6 {[%emt 0:10:48]} 16. Na4 {[%emt 0:18:31]} Bd5 {[%emt 0:12:55]} 17. Rd1 {[%emt 0:03:53]} Ne6 {[%emt 0:09:16]} 18. Nc5 {[%emt 0:01:44]} Nxc5 {[%emt 0:06:52]} 19. dxc5 {[%emt 0:01:19]} Qe5 {[%emt 0:01:45]} 20. Ng3 {[%emt 0:01:42]} h5 {[%emt 0:02:10]} 21. f4 {[%emt 0:01:31]} Qc7 {[%emt 0:06:35]} 22. h3 {[%emt 0:03:35]} Qa5 {[%emt 0:04:36]} 23. a3 {[%emt 0:02:44]} b6 {[%emt 0:04:31]} 24. cxb6 {[%emt 0:01:30]} Qxb6+ {[%emt 0:01:00]} 25. Qf2 {[%emt 0:00:22]} Qb3 {[%emt 0:05:10]} 26. Bc2 {[%emt 0:01:53]} Qb7 {[%emt 0:00:49]} 27. b4 {[%emt 0:00:35]} Qb6 {[%emt 0:01:29]} 28. Kh2 {[%emt 0:02:32]} Re3 {[%emt 0:01:00]} 29. Rd3 {[%emt 0:01:07]} Rae8 {[%emt 0:00:38]} 30. Rxe3 {[%emt 0:00:53]} Qxe3 {[%emt 0:00:39]} 31. a4 {[%emt 0:00:30]} Qxf2 {[%emt 0:01:17]} 32. Rxf2 {[%emt 0:00:01]} Rb8 {[%emt 0:00:40]} 33. Re2 {[%emt 0:01:01]} Kf8 {[%emt 0:00:45]} 34. b5 {[%emt 0:00:32]} cxb5 {[%emt 0:00:15]} 35. axb5 {[%emt 0:00:25]} Rxb5 {[%emt 0:00:12]} 36. Re5 {[%emt 0:00:39]} Rb2 {[%emt 0:01:07]} 37. Be4 {[%emt 0:00:40]} Bxe4 {[%emt 0:01:04]} 38. Nxe4 {[%emt 0:00:14]} Nxe4 {[%emt 0:00:14]} 39. Rxe4 {[%emt 0:00:02]} Ra2 {[%emt 0:00:28]} 40. Re5 {[%emt 0:00:20]} g6 {[%emt 0:00:22]} 41. f5 {[%emt 0:00:03]} Kg7 {[%emt 0:00:24]} 42. fxg6 {[%emt 0:00:22]} fxg6 {[%emt 0:00:06]} 43. Kg3 {[%emt 0:00:25]} a5 {[%emt 0:00:24]} 44. Kf3 {[%emt 0:00:23]} a4 {[%emt 0:00:15]} 45. g4 {[%emt 0:02:00]} Kf6 {[%emt 0:01:06]} 46. Ra5 {[%emt 0:00:32]} hxg4+ {[%emt 0:00:41]} 47. Kxg4 {[%emt 0:00:38]} a3 {[%emt 0:00:13]} 48. Ra6+ {[%emt 0:00:28]} Kg7 {[%emt 0:00:33]} 49. Kg5 {[%emt 0:00:32]} Rg2+ {[%emt 0:00:13]} 50. Kf4 {[%emt 0:00:10]} a2 {[%emt 0:00:13]} 51. Kf3 {[%emt 0:00:47]} Rb2 {[%emt 0:00:38]} 52. Ra3 {[%emt 0:00:33]} Rb3+ {[%emt 0:00:16]} 53. Rxb3 {[%emt 0:00:18]} a1=Q {[%emt 0:00:08]} 54. Re3 {[%emt 0:00:07]} Qf1+ {[%emt 0:00:18]} 55. Kg3 {[%emt 0:00:09]} Qg1+ {[%emt 0:00:06]} 56. Kf3 {[%emt 0:00:07]} Kh6 {[%emt 0:00:15]} 57. Re2 {[%emt 0:00:12]} Qf1+ {[%emt 0:00:13]} 0-1

[Event "Winter Malopolska Cup Master 2022"]
[Site "Krakow"]
[Date "2022.01.17"]
[Round "5.6"]
[White "Klementys, Jerzy"]
[Black "Kania, Franciszek"]
[Result "0-1"]
[ECO "E97"]
[WhiteElo "1564"]
[BlackElo "1528"]
[Annotator "NA"]
[PlyCount "66"]
[EventDate "2022.01.15"]
[EventType "swiss"]
[EventCountry "POL"]
[TimeControl "5400+30"]

1. d4 {[%emt 0:00:01]} Nf6 {[%emt 0:00:05]} 2. c4 {[%emt 0:00:06]} g6 {[%emt 0:00:03]} 3. Nc3 {[%emt 0:00:05]} Bg7 {[%emt 0:00:06]} 4. e4 {[%emt 0:00:05]} d6 {[%emt 0:00:04]} 5. Nf3 {[%emt 0:00:07]} O-O {[%emt 0:00:06]} 6. Be2 {[%emt 0:00:14]} e5 {[%emt 0:00:29]} 7. O-O {[%emt 0:00:27]} Nc6 {[%emt 0:00:19]} 8. d5 {[%emt 0:00:04]} Ne7 {[%emt 0:00:11]} 9. Bg5 {[%emt 0:00:48]} h6 {[%emt 0:00:51]} 10. Be3 {[%emt 0:00:22]} Ng4 {[%emt 0:00:52]} 11. b4 {[%emt 0:00:56]} Nxe3 {[%emt 0:00:38]} 12. fxe3 {[%emt 0:00:03]} f5 {[%emt 0:05:54]} 13. exf5 {[%emt 0:05:20]} Nxf5 {[%emt 0:02:39]} 14. Qd2 {[%emt 0:02:15]} e4 {[%emt 0:06:38]} 15. Nd4 {[%emt 0:04:24]} Re8 {[%emt 0:11:42]} 16. Nxf5 {[%emt 0:04:25]} Bxf5 {[%emt 0:00:36]} 17. Rac1 {[%emt 0:01:16]} a6 {[%emt 0:05:06]} 18. c5 {[%emt 0:06:40]} Be5 {[%emt 0:02:15]} 19. Bd1 {[%emt 0:01:54]} Qh4 {[%emt 0:03:25]} 20. g3 {[%emt 0:05:06]} Qg5 {[%emt 0:00:34]} 21. Ne2 {[%emt 0:02:05]} Kg7 {[%emt 0:17:08]} 22. Nf4 {[%emt 0:03:09]} Re7 {[%emt 0:00:36]} 23. cxd6 {[%emt 0:07:42]} Bxd6 {[%emt 0:04:18]} 24. Bb3 {[%emt 0:05:08]} h5 {[%emt 0:06:33]} 25. Ne6+ {[%emt 0:08:17]} Bxe6 {[%emt 0:00:28]} 26. dxe6 {[%emt 0:00:06]} h4 {[%emt 0:02:22]} 27. Qd4+ {[%emt 0:03:52]} Be5 {[%emt 0:06:54]} 28. Qxe4 {[%emt 0:00:36]} hxg3 {[%emt 0:01:09]} 29. h3 {[%emt 0:02:57]} Bd6 {[%emt 0:04:08]} 30. Rf7+ {[%emt 0:04:54]} Rxf7 {[%emt 0:01:18]} 31. exf7 {[%emt 0:00:02]} Rh8 {[%emt 0:00:58]} 32. Rf1 {[%emt 0:07:04]} g2 {[%emt 0:04:06]} 33. Rf3 {[%emt 0:06:08]} Bh2+ {[%emt 0:00:15]} 0-1

[Event "Winter Malopolska Cup Master 2022"]
[Site "Krakow"]
[Date "2022.01.17"]
[Round "5.7"]
[White "Owoc, Jakub"]
[Black "Sadzikowski, Marian"]
[Result "0-1"]
[ECO "B03"]
[WhiteElo "1701"]
[BlackElo "1763"]
[Annotator "NA"]
[PlyCount "52"]
[EventDate "2022.01.15"]
[EventType "swiss"]
[EventCountry "POL"]
[TimeControl "5400+30"]

1. e4 {[%emt 0:00:03]} Nf6 {[%emt 0:01:35]} 2. e5 {[%emt 0:00:18]} Nd5 {[%emt 0:00:06]} 3. d4 {[%emt 0:00:09]} Nc6 {[%emt 0:00:13]} 4. c4 {[%emt 0:04:08]} Nb6 {[%emt 0:00:08]} 5. Nf3 {[%emt 0:00:41]} d6 {[%emt 0:00:22]} 6. exd6 {[%emt 0:01:43]} exd6 {[%emt 0:00:24]} 7. Bd3 {[%emt 0:00:34]} Bg4 {[%emt 0:00:38]} 8. Be3 {[%emt 0:01:41]} Be7 {[%emt 0:02:54]} 9. Nbd2 {[%emt 0:00:30]} Bf6 {[%emt 0:01:04]} 10. h3 {[%emt 0:04:45]} Bh5 {[%emt 0:00:31]} 11. g4 {[%emt 0:09:44]} Bg6 {[%emt 0:00:15]} 12. Bxg6 {[%emt 0:02:42]} hxg6 {[%emt 0:00:37]} 13. g5 {[%emt 0:01:00]} Be7 {[%emt 0:00:21]} 14. d5 {[%emt 0:00:07]} Ne5 {[%emt 0:00:47]} 15. Nxe5 {[%emt 0:00:10]} dxe5 {[%emt 0:00:05]} 16. Qg4 {[%emt 0:00:52]} Qd7 {[%emt 0:00:34]} 17. Qg3 {[%emt 0:00:41]} Qf5 {[%emt 0:01:25]} 18. Rc1 {[%emt 0:02:19]} O-O-O {[%emt 0:04:11]} 19. Nf3 {[%emt 0:02:44]} Qd3 {[%emt 0:06:41]} 20. Nxe5 {[%emt 0:00:39]} Bb4+ {[%emt 0:00:23]} 21. Rc3 {[%emt 0:00:51]} Bxc3+ {[%emt 0:00:26]} 22. bxc3 {[%emt 0:00:05]} Qb1+ {[%emt 0:00:34]} 23. Ke2 {[%emt 0:00:30]} Qxh1 {[%emt 0:00:24]} 24. Nxf7 {[%emt 0:00:48]} Rxh3 {[%emt 0:03:22]} 25. Qg4+ {[%emt 0:00:39]} Rd7 {[%emt 0:00:25]} 26. Qe6 {[%emt 0:00:06]} Qf3+ {[%emt 0:00:15]} 0-1

[Event "Winter Malopolska Cup Master 2022"]
[Site "Krakow"]
[Date "2022.01.18"]
[Round "6.4"]
[White "Owoc, Jakub"]
[Black "Czaplak, Lukasz"]
[Result "1/2-1/2"]
[ECO "A06"]
[WhiteElo "1701"]
[BlackElo "1877"]
[Annotator "NA RC"]
[PlyCount "149"]
[EventDate "2022.01.15"]
[EventType "swiss"]
[EventCountry "POL"]
[SourceTitle "playchess.com"]
[Source "ChessBase"]
[SourceQuality "1"]
[TimeControl "5400+30"]

{[%evp 8,147,8,-8,32767,32767,32767,32767,32767,32767,32767,32767,32767,32767,32767,32767,67,32767,32767,32767,32767,32767,32767,32767,99,93,32767,32767,32767,32767,100,94,110,122,78,84,32767,-7,0,0,32767,0,32767,32767,32767,32767,32767,32767,32767,0,32767,32767,0,32767,32767,32767,32767,32767,46,38,32767,32767,32767,13,16,22,28,60,32767,87,179,175,179,61,88,79,91,100,148,174,251,32767,258,166,199,136,179,32767,32767,114,149,153,140,0,144,143,183,194,165,32767,238,177,284,250,353,411,470,347,252,386,297,35,289,379,562,386,213,0,8,0,0,0,0,0,4991,8,66,0,0,8,0,0,8,0,8,8,8,8,0,0,0,0]} 1. Nf3 {[%emt 0:00:02]} d5 {[%emt 0:00:08]} 2. b3 {[%emt 0:00:13]} Nf6 {[%emt 0:00:34]} 3. Bb2 {[%emt 0:00:05]} e6 {[%emt 0:00:45]} 4. c4 {[%emt 0:00:05]} Be7 {[%emt 0:01:20]} 5. cxd5 {[%emt 0:00:06]} exd5 {[%emt 0:00:10]} 6. e3 {[%emt 0:00:22]} O-O {[%emt 0:00:11]} 7. Be2 {[%emt 0:00:04]} c5 {[%emt 0:05:35]} 8. d4 {[%emt 0:00:07]} Nc6 {[%emt 0:01:33]} 9. O-O {[%emt 0:00:28]} h6 {[%emt 0:00:43]} 10. Nc3 {[%emt 0:00:09]} Be6 {[%emt 0:03:11]} 11. Rc1 {[%emt 0:00:17]} cxd4 {[%emt 0:02:01]} 12. Nxd4 {[%emt 0:00:07]} Nxd4 {[%emt 0:04:41]} 13. Qxd4 {[%emt 0:01:08]} a6 {[%emt 0:04:04]} 14. Rfd1 {[%emt 0:01:02]} b5 {[%emt 0:07:14]} 15. Bf3 {[%emt 0:01:09]} Rc8 {[%emt 0:07:54]} 16. Nxd5 {[%emt 0:05:26]} Bxd5 {[%emt 0:01:08]} 17. Rxc8 {[%emt 0:00:09]} Qxc8 {[%emt 0:00:07]} 18. Bxd5 {[%emt 0:00:04]} Rd8 {[%emt 0:02:30]} 19. e4 {[%emt 0:00:15]} Qc2 {[%emt 0:04:52]} 20. Rc1 {[%emt 0:24:39]} Qe2 {[%emt 0:00:06]} 21. h3 {[%emt 0:24:06]} Nh5 {[%emt 0:29:35]} 22. f4 {[%emt 0:13:04]} (22. Bc3 $16) 22... Bf6 {[%emt 0:01:45]} 23. e5 {[%emt 0:00:59]} Bh4 {[%emt 0:01:58]} 24. Bf3 {[%emt 0:16:16]} Rxd4 {[%emt 0:11:21]} 25. Rc8+ {[%emt 0:01:46]} Rd8 {[%emt 0:01:56]} 26. Rxd8+ {[%emt 0:00:05]} Bxd8 {[%emt 0:00:02]} 27. Bxe2 {[%emt 0:00:08]} Nxf4 {[%emt 0:00:02]} 28. Bg4 {[%emt 0:01:04]} Bc7 {[%emt 0:02:24]} 29. Bd4 {[%emt 0:01:07]} Ne6 {[%emt 0:01:52]} 30. Bc3 {[%emt 0:01:59]} Kf8 {[%emt 0:00:23]} 31. Kf2 {[%emt 0:00:33]} Ke7 {[%emt 0:00:10]} 32. Ke3 {[%emt 0:00:23]} Kd7 {[%emt 0:00:38]} 33. Bh5 {[%emt 0:01:35]} g6 {[%emt 0:00:53]} 34. Bf3 {[%emt 0:00:03]} Bb6+ {[%emt 0:01:12]} 35. Kd3 {[%emt 0:01:26]} Nc5+ {[%emt 0:00:22]} 36. Ke2 {[%emt 0:00:18]} Bc7 {[%emt 0:00:54]} 37. b4 {[%emt 0:00:19]} Na4 {[%emt 0:00:45]} 38. Bd4 {[%emt 0:00:36]} a5 {[%emt 0:00:32] [#]} ({Black should try} 38... Nb6 $1 $14) 39. Bd5 $1 {[%emt 0:01:24]} Ke7 {[%emt 0:00:47]} 40. a3 {[%emt 0:00:46]} (40. bxa5 $18 Bxa5 41. Ke3) 40... axb4 {[%emt 0:02:25]} 41. axb4 {[%emt 0:00:05]} Nb6 {[%emt 0:00:39]} 42. Bc5+ {[%emt 0:00:04]} Ke8 {[%emt 0:00:17]} (42... Kd8 $142 43. Bxf7 Nd7) 43. Bc6+ {[%emt 0:00:02]} Kd8 {[%emt 0:00:10]} 44. Bxb5 {[%emt 0:00:13]} Nd7 {[%emt 0:01:54]} 45. Be3 {[%emt 0:00:05]} Bxe5 {[%emt 0:00:45]} 46. Bc4 {[%emt 0:00:09]} f6 {[%emt 0:00:20]} (46... Bd6 $16 {was necessary.}) 47. Bxh6 {[%emt 0:00:23]} Nb6 {[%emt 0:00:14]} 48. Bf7 {[%emt 0:00:15]} ({Better is} 48. Kd3 $18) 48... g5 $1 $11 {[%emt 0:00:06] remains equal.} 49. Bf8 {[%emt 0:00:02]} Nd7 {[%emt 0:00:19]} 50. Bh6 $2 {[%emt 0:01:52]} (50. Bg7 $16) 50... Ke7 {[%emt 0:00:11]} 51. Bb3 {[%emt 0:00:05]} Bc3 {[%emt 0:00:22]} 52. b5 {[%emt 0:00:05]} Nc5 {[%emt 0:00:26]} 53. Bc4 {[%emt 0:00:18]} Nd7 {[%emt 0:00:30]} (53... Ba5 $16 {was worth a try.} 54. Ke3 Bc3) 54. Ke3 {[%emt 0:00:15]} Kd6 {[%emt 0:00:29]} (54... Nb6 $16) 55. Ke4 {[%emt 0:00:09]} Nc5+ {[%emt 0:01:44]} 56. Kf5 {[%emt 0:00:05]} Ke7 {[%emt 0:00:14]} 57. g3 {[%emt 0:02:23]} Nb7 {[%emt 0:00:14]} 58. Kg6 {[%emt 0:00:10]} Nd6 {[%emt 0:00:34]} 59. Bd3 $2 {[%emt 0:00:19]} (59. Be2 $18) 59... Be5 $2 {[%emt 0:00:09]} ({Black should play} 59... Nf7 $1 $14) 60. h4 {[%emt 0:01:49]} Bxg3 {[%emt 0:00:31] [#]} 61. h5 $1 {[%emt 0:00:05]} ({And not} 61. hxg5 fxg5 62. Bxg5+ Ke6 $11) 61... Nf7 {[%emt 0:00:32]} 62. Bg7 $2 {[%emt 0:00:07]} (62. Be2 $18 Nxh6 63. Kxh6) 62... Ne5+ {[%emt 0:00:13]} 63. Kf5 {[%emt 0:00:10]} Nxd3 {[%emt 0:00:12]} 64. h6 {[%emt 0:00:23]} Kf7 {[%emt 0:01:03]} 65. Bxf6 {[%emt 0:00:11]} Nf4 $2 {[%emt 0:00:33]} (65... Kg8 $11) 66. Be5 $2 {[%emt 0:00:35]} ({White has to play} 66. h7 $18 Ng6 67. b6) 66... Bf2 {[%emt 0:01:06]} (66... Kg8 $1 $11) 67. Bc7 {[%emt 0:02:25]} ({But not} 67. Kxg5 Ne6+ 68. Kh5 Nf8 $11) ({Much weaker is} 67. Bxf4 gxf4 68. Kxf4 Kg6 $11) (67. h7 $14 Ng6 {[#]} 68. Kxg5 $1) 67... Bd4 {[%emt 0:00:38]} 68. b6 {[%emt 0:00:50]} Bxb6 {[%emt 0:00:37]} 69. Bxb6 {[%emt 0:00:10]} Ne6 {[%emt 0:00:18]} 70. Ba5 {[%emt 0:00:09]} g4 {[%emt 0:00:41]} 71. Bc3 {[%emt 0:02:21]} Nf8 {[%emt 0:00:06]} 72. Be5 {[%emt 0:02:26]} Nh7 {[%emt 0:00:11]} 73. Bg3 {[%emt 0:00:11]} Nf6 {[%emt 0:00:36]} 74. Be5 $11 {[%emt 0:01:23]} Nh7 {[%emt 0:00:14]} 75. Kxg4 {[%emt 0:00:25]} 1/2-1/2

[Event "Winter Malopolska Cup Master 2022"]
[Site "Krakow"]
[Date "2022.01.18"]
[Round "6.5"]
[White "Klementys, Jerzy"]
[Black "Szopa, Emilia"]
[Result "0-1"]
[ECO "E94"]
[WhiteElo "1564"]
[BlackElo "1588"]
[Annotator "NA RC"]
[PlyCount "94"]
[EventDate "2022.01.15"]
[EventType "swiss"]
[EventCountry "POL"]
[SourceTitle "playchess.com"]
[Source "ChessBase"]
[SourceQuality "1"]
[TimeControl "5400+30"]

1. d4 {[%emt 0:00:02]} Nf6 {[%emt 0:00:10]} 2. c4 {[%emt 0:00:01]} g6 {[%emt 0:00:22]} 3. Nc3 {[%emt 0:00:23]} Bg7 {[%emt 0:00:16]} 4. e4 {[%emt 0:00:03]} d6 {[%emt 0:00:21]} 5. Nf3 {[%emt 0:00:03]} O-O {[%emt 0:00:38]} 6. Be2 {[%emt 0:00:07]} e5 {[%emt 0:00:40]} 7. O-O {[%emt 0:00:17]} a5 {[%emt 0:01:46]} 8. Bg5 {[%emt 0:00:28]} h6 {[%emt 0:01:35]} 9. Bh4 {[%emt 0:00:23]} Qe8 {[%emt 0:04:28]} 10. dxe5 {[%emt 0:04:50]} dxe5 {[%emt 0:00:27]} 11. Qc2 {[%emt 0:04:07]} c6 {[%emt 0:10:02]} 12. Rad1 {[%emt 0:02:45]} Na6 {[%emt 0:03:12]} 13. a3 {[%emt 0:01:26]} g5 {[%emt 0:14:44]} 14. Bg3 {[%emt 0:00:17]} Nh5 {[%emt 0:01:33]} 15. Bxe5 {[%emt 0:02:14]} Bxe5 {[%emt 0:01:46]} 16. Nxe5 {[%emt 0:02:38]} Qxe5 {[%emt 0:00:10]} 17. Bxh5 {[%emt 0:00:24]} g4 {[%emt 0:00:12]} 18. Bxg4 {[%emt 0:02:10]} Bxg4 {[%emt 0:00:24]} 19. f3 {[%emt 0:00:04]} Be6 {[%emt 0:00:40]} 20. f4 {[%emt 0:01:09]} Qc5+ {[%emt 0:02:35]} 21. Kh1 {[%emt 0:00:01]} Rad8 {[%emt 0:03:16]} 22. Rde1 {[%emt 0:00:17]} Bxc4 {[%emt 0:07:56]} 23. Rf3 {[%emt 0:00:08]} Rd6 {[%emt 0:00:43]} 24. f5 {[%emt 0:00:15]} Rfd8 {[%emt 0:01:38]} 25. Qc1 {[%emt 0:03:16]} Qe5 {[%emt 0:05:33]} 26. Qe3 {[%emt 0:06:03]} Nc5 {[%emt 0:07:40]} 27. f6 {[%emt 0:04:47]} Kh7 {[%emt 0:02:30]} 28. Rf5 {[%emt 0:02:11]} Qd4 {[%emt 0:11:02]} 29. Qxd4 {[%emt 0:01:43]} Rxd4 {[%emt 0:00:08]} 30. Rxc5 {[%emt 0:00:16]} a4 {[%emt 0:00:41]} 31. Nxa4 {[%emt 0:07:15]} Rxe4 {[%emt 0:06:31]} 32. Rc1 {[%emt 0:00:36]} Rd2 {[%emt 0:03:37]} 33. Nc3 {[%emt 0:13:12]} Rf4 {[%emt 0:02:39]} 34. g3 {[%emt 0:06:19]} Rfd4 {[%emt 0:00:10]} 35. b4 {[%emt 0:03:53]} Be6 {[%emt 0:00:48]} 36. Re5 {[%emt 0:05:11]} Rb2 {[%emt 0:03:15]} 37. Re2 {[%emt 0:09:15]} Rb3 {[%emt 0:01:22]} 38. Nb1 {[%emt 0:09:47]} Bf5 {[%emt 0:00:19]} 39. Ree1 {[%emt 0:00:02]} Rb2 {[%emt 0:00:17]} 40. Kg1 {[%emt 0:00:57]} Rd6 {[%emt 0:00:34]} 41. Rf1 {[%emt 0:04:20]} Be4 {[%emt 0:00:08]} 42. Rfe1 {[%emt 0:02:36]} Bf5 {[%emt 0:00:10]} 43. h4 {[%emt 0:03:26]} Rd3 {[%emt 0:00:59]} 44. Rc3 {[%emt 0:00:41]} Rxb1 {[%emt 0:00:14]} 45. Rxd3 {[%emt 0:00:50]} Rxe1+ {[%emt 0:00:09]} 46. Kf2 {[%emt 0:00:09]} Bxd3 {[%emt 0:00:08]} 47. Kxe1 {[%emt 0:00:05]} Kg6 {[%emt 0:00:05]} 0-1